bitfinex/quotes_ETHUSD_20241030
["timestamp","ask_amount","ask_price","bid_price","bid_amount"]
[1730250088152,4.61506,2618.8,2618.4,0.2858629]
[1730250088469,4.61506,2618.8,2618.5,0.28584993]
[1730250088629,4.61506,2618.8,2618.3,8.86095868]
[1730250088966,4.61506,2618.8,2618.4,0.28584932]
[1730250089167,4.61506,2618.8,2618.3,4.58442]
[1730250089462,0.59752523,2618.9,2618.5,3.81896]
[1730250089666,8.45912,2619.1,2618.6,3.81875]
[1730250089972,0.8228,2619.1,2618.6,3.81875]
[1730250090271,0.8228,2619.1,2618.7,4.10447964]
[1730250090426,0.8228,2619.1,2618.7,3.81866]
[1730250090634,0.8228,2619.1,2618.7,0.7561]
[1730250091029,1.42028607,2619.3,2618.8,3.81846]
[1730250091228,1.42028607,2619.3,2618.9,0.457456]
[1730250091469,0.8228,2619.3,2618.9,4.275736]
[1730250092331,0.8228,2619.3,2618.9,8.094046]
[1730250092531,0.8228,2619.3,2619.0,3.81822]
[1730250092759,0.8228,2619.3,2618.9,4.275736]
[1730250093138,0.8228,2619.2,2618.4,0.45732967]
[1730250093338,3.42383288,2619.4,2618.4,0.45732967]
[1730250093339,4.64177,2618.6,2618.4,0.45732967]
[1730250093667,0.07744995,2618.5,2618.4,0.45732967]
[1730250094370,4.36832994,2618.5,2618.4,0.45732967]
[1730250094551,3.89642995,2618.5,2618.4,0.45732967]
[1730250097339,4.71922995,2618.5,2618.4,0.45732967]
[1730250098943,4.71922995,2618.5,2617.8,3.81998]
[1730250099141,3.81943,2618.2,2617.8,3.81998]
[1730250099542,0.07721504,2618.1,2617.8,3.81998]
[1730250099984,7.63876,2618.3,2617.8,3.81998]
[1730250100167,7.63876,2618.3,2617.6,3.82018]
[1730250100168,3.81945,2618.2,2617.7,3.82014]
[1730250100368,3.89666504,2618.2,2617.8,0.28571648]
[1730250100682,3.89666504,2618.2,2617.7,3.82014]
[1730250100841,3.89666504,2618.2,2617.6,3.82018]
[1730250100842,0.07721504,2618.2,2617.6,3.82018]
[1730250101042,0.07721504,2618.2,2617.7,4.10584469]
[1730250101238,0.07721504,2618.2,2617.8,0.28570469]
[1730250101469,4.64238,2618.1,2617.6,4.32352158]
[1730250101654,4.64238,2618.1,2617.7,0.28569175]
[1730250101855,0.07721504,2618.0,2617.8,0.28569326]
[1730250102065,0.07721504,2618.0,2617.7,0.28569326]
[1730250102266,0.07721504,2618.0,2617.6,4.32352158]
[1730250102475,0.07721504,2618.0,2617.7,0.28566796]
[1730250102655,0.07721504,2618.0,2617.8,0.28566796]
[1730250102851,0.07721504,2618.0,2617.6,4.32352158]
[1730250103060,0.07721504,2618.0,2617.7,0.28565447]
[1730250103276,0.07721504,2618.0,2617.8,3.81998]
[1730250103597,4.64215,2618.3,2617.8,4.50923502]
[1730250103764,4.64186,2618.5,2618.0,3.81969]
[1730250104080,3.81913,2618.4,2618.0,3.81969]
[1730250104444,4.64186,2618.5,2618.0,3.81969]
[1730250104640,0.8228,2618.5,2618.0,4.77382258]
[1730250104949,0.8228,2618.5,2618.1,4.10510771]
[1730250105170,0.8228,2618.5,2618.1,3.81949]
[1730250106782,4.64179,2618.5,2618.1,3.81949]
[1730250107293,0.8228,2618.5,2618.0,0.95419258]
[1730250107592,0.8228,2618.5,2617.8,3.81998]
[1730250107593,4.64179,2618.5,2617.8,3.81998]
[1730250107776,4.64179,2618.5,2617.9,4.10550595]
[1730250107949,4.64179,2618.5,2617.9,3.81984]
[1730250108145,4.64179,2618.5,2618.0,0.759]
[1730250108456,0.8228,2618.5,2618.0,5.036574]
[1730250108770,0.07712619,2618.4,2618.0,5.036574]
[1730250109256,0.07712619,2618.4,2617.9,4.10548266]
[1730250109493,3.89633619,2618.4,2617.8,4.57889]
[1730250109689,3.81948,2618.2,2617.9,0.28565058]
[1730250109889,0.07712026,2618.1,2617.8,4.10564952]
[1730250110087,3.8193,2618.3,2617.8,3.81999]
[1730250110287,3.8193,2618.3,2617.6,4.57915]
[1730250110288,3.89660842,2618.2,2617.7,0.28566949]
[1730250110492,3.82001,2617.8,2617.4,0.45702503]
[1730250110723,3.82001,2617.8,2617.3,4.57958]
[1730250110909,0.07710842,2617.7,2617.4,0.28568935]
[1730250111226,0.7957,2617.7,2617.3,4.57973]
[1730250111515,0.07707287,2617.6,2617.3,4.57973]
[1730250112080,0.07707287,2617.6,2617.3,0.759]
[1730250112285,3.89736287,2617.6,2617.2,0.28558084]
[1730250112591,3.89736287,2617.6,2617.2,0.2856182]
[1730250112796,3.89736287,2617.6,2617.2,4.1064682]
[1730250112990,3.89736287,2617.6,2617.1,4.57993]
[1730250113197,0.92838016,2617.6,2617.0,0.28562101]
[1730250113404,0.7957,2617.3,2616.9,4.10673978]
[1730250113620,0.7957,2617.3,2616.8,0.28552978]
[1730250113820,0.7957,2617.3,2616.7,0.759]
[1730250113821,0.07690894,2617.2,2616.7,4.58058]
[1730250113988,0.7957,2617.3,2616.9,3.82128]
[1730250114527,0.07690894,2617.2,2616.9,3.82128]
[1730250115018,0.7957,2617.3,2616.9,3.82128]
[1730250115224,0.07687534,2617.1,2616.7,0.759]
[1730250115427,0.7957,2617.3,2616.7,4.58058]
[1730250115428,3.8209,2617.2,2616.7,4.58058]
[1730250115598,0.07687534,2617.0,2616.7,4.58058]
[1730250115797,3.8209,2617.2,2616.7,4.58053]
[1730250116007,0.07687534,2616.9,2616.7,4.58053]
[1730250116197,3.8209,2617.2,2616.7,4.58053]
[1730250116394,0.07687534,2616.8,2616.7,4.58053]
[1730250116624,3.8209,2617.2,2616.7,4.58053]
[1730250116785,0.07687534,2616.8,2616.7,4.58053]
[1730250117004,0.07687534,2616.8,2616.5,3.8218]
[1730250117005,0.7957,2617.1,2616.5,3.8218]
[1730250117238,0.7957,2617.1,2616.7,3.8216]
[1730250117239,0.07687534,2616.8,2616.7,3.8216]
[1730250117414,0.7957,2617.1,2616.7,3.8216]
[1730250117622,0.07678642,2616.8,2616.7,3.8216]
[1730250117807,0.7957,2617.1,2616.8,3.82139]
[1730250118526,0.7957,2617.4,2616.9,3.82129]
[1730250118745,1.258315,2617.4,2616.9,7.64246]
[1730250118903,0.7957,2617.4,2616.9,7.64246]
[1730250119108,0.7957,2617.4,2616.9,3.8212]
[1730250120006,0.7957,2617.4,2616.9,7.64243]
[1730250120203,0.7957,2617.4,2616.8,3.82146]
[1730250120516,0.7784,2617.6,2616.7,7.99441288]
[1730250120717,0.7784,2617.6,2616.8,0.79944129]
[1730250121048,4.59871,2617.6,2617.0,3.82103]
[1730250121230,3.82044,2617.5,2617.0,3.82116]
[1730250121540,4.59873,2617.6,2617.1,3.821]
[1730250121739,4.59873,2617.6,2617.1,7.6419]
[1730250121903,4.59873,2617.6,2617.1,3.8209]
[1730250122109,8.879023,2617.6,2617.1,3.8209]
[1730250122642,3.82045,2617.5,2616.9,7.64238]
[1730250122846,0.7784,2617.2,2616.7,4.58049]
[1730250123051,4.59936,2617.2,2616.7,3.82149]
[1730250123344,4.6,2616.8,2616.4,0.39873538]
[1730250123857,3.89836875,2616.7,2616.4,0.39873538]
[1730250124208,3.82176,2616.6,2616.4,0.39873538]
[1730250124449,1.16825188,2616.5,2616.4,0.39873538]
[1730250124650,4.67695389,2616.5,2616.4,0.39873538]
[1730250124848,0.85506389,2616.5,2616.4,0.39873538]
[1730250125053,4.67695389,2616.5,2616.4,0.39873538]
[1730250125228,0.85506389,2616.5,2616.4,0.39873538]
[1730250127058,0.85506389,2616.5,2616.4,4.22077538]
[1730250127246,0.07666389,2616.5,2616.4,0.39873538]
[1730250127634,4.59992,2616.8,2616.4,0.39873538]
[1730250127635,3.8216,2616.7,2616.4,0.39873538]
[1730250127824,4.663902,2616.6,2616.4,0.39873538]
[1730250128183,0.07653145,2616.5,2616.4,0.39873538]
[1730250129786,3.89842145,2616.5,2616.4,0.39873538]
[1730250130078,4.67682145,2616.5,2616.4,0.39873538]
[1730250131252,8.10065433,2616.5,2616.4,0.39873538]
[1730250131481,9.37811296,2616.5,2616.4,0.39873538]
[1730250135166,4.61088,2616.1,2616.0,0.06638791]
[1730250135362,8.02471288,2616.1,2616.0,0.06638791]
[1730250135594,8.09838225,2616.1,2616.0,0.06638791]
[1730250135806,9.29145448,2616.1,2616.0,0.06638791]
[1730250136679,0.7784,2614.9,2614.4,3.82485]
[1730250136880,0.07355009,2614.8,2614.6,3.9510147]
[1730250137088,0.07355009,2614.8,2614.6,0.1263947]
[1730250138072,3.89802009,2614.8,2614.6,0.1263947]
[1730250138305,4.7490961,2614.8,2614.6,0.1263947]
[1730250139537,8.02676288,2614.7,2614.6,0.1263947]
[1730250139683,8.03676288,2614.7,2614.6,0.1263947]
[1730250140032,0.07333127,2614.7,2614.6,0.1263947]
[1730250140410,3.82453,2614.7,2614.6,0.1263947]
[1730250140583,8.09987531,2614.7,2614.6,0.1263947]
[1730250140901,4.68604243,2614.7,2614.6,0.1263947]
[1730250141508,0.85151243,2614.7,2614.6,0.1263947]
[1730250141806,4.68604243,2614.7,2614.6,0.1263947]
[1730250142022,4.67604243,2614.7,2614.6,0.1263947]
[1730250142539,4.68604243,2614.7,2614.6,0.1263947]
[1730250142834,8.95092955,2614.7,2614.6,0.1263947]
[1730250143206,0.7784,2613.8,2612.8,4.62738535]
[1730250143395,0.7784,2613.3,2612.5,0.7858]
[1730250143602,3.82632,2613.5,2612.9,3.82707]
[1730250143829,0.7784,2613.6,2612.7,3.82745]
[1730250144029,0.0730189,2613.4,2612.8,1.50992829]
[1730250144240,3.57609,2613.7,2613.0,3.82699]
[1730250144537,0.0730189,2613.6,2612.9,3.82703]
[1730250144723,0.0730189,2613.6,2613.1,3.82679]
[1730250144904,3.82585,2613.8,2613.1,7.65356]
[1730250145232,0.0729492,2613.7,2613.2,3.82671]
[1730250145433,0.0729492,2613.7,2613.1,3.82677]
[1730250145434,3.8989492,2613.7,2613.1,3.82677]
[1730250145600,0.0729492,2613.7,2613.3,3.82657]
[1730250145929,4.668882,2613.8,2612.8,1.50992829]
[1730250146236,0.07269235,2613.7,2612.8,1.50992829]
[1730250146410,3.82614,2613.6,2613.0,3.82689]
[1730250146731,3.82647,2613.4,2612.9,3.82703]
[1730250146934,0.07269235,2613.3,2612.9,7.6541]
[1730250147151,7.65239,2613.6,2612.9,7.6541]
[1730250147465,0.07260271,2613.2,2613.0,3.82701]
[1730250147611,3.82616,2613.6,2613.1,3.82678]
[1730250147947,4.30015743,2613.7,2613.1,7.65355]
[1730250148146,4.30015743,2613.7,2613.1,3.82676]
[1730250148147,0.47415743,2613.7,2613.1,3.82676]
[1730250148451,4.30014743,2613.7,2613.2,3.8267]
[1730250148647,4.30014743,2613.7,2612.9,3.82707]
[1730250148827,0.47415743,2613.7,2613.1,3.82685]
[1730250149022,0.47415743,2613.7,2613.1,3.82678]
[1730250149423,3.82628,2613.5,2612.8,3.82721]
[1730250149654,0.7784,2613.6,2613.0,3.82687]
[1730250149959,0.7784,2613.6,2612.8,3.82723]
[1730250149960,0.7884,2613.6,2612.8,3.82723]
[1730250150112,3.82637,2613.5,2612.8,3.82723]
[1730250150316,4.33426274,2613.5,2612.8,7.65446]
[1730250150536,0.50789274,2613.5,2612.8,3.82723]
[1730250150772,3.82679,2613.2,2612.6,4.63387]
[1730250150929,3.82643,2613.4,2612.8,3.8273]
[1730250151456,4.33421274,2613.5,2612.9,3.82714]
[1730250151619,0.89388427,2613.4,2613.0,3.827]
[1730250152051,0.89388427,2613.4,2613.0,7.65393]
[1730250152217,0.89388427,2613.4,2613.0,3.82693]
[1730250152416,0.89388427,2613.4,2613.1,3.82686]
[1730250152929,0.89388427,2613.4,2612.4,3.41383288]
[1730250152930,4.72038427,2613.4,2612.9,3.82705]
[1730250153130,0.47203843,2613.3,2612.9,3.82705]
[1730250153722,0.07254296,2613.2,2612.9,3.82705]
[1730250153924,4.60462,2613.6,2612.9,3.82705]
[1730250154143,0.07254296,2613.5,2613.0,3.82687]
[1730250154599,0.07254296,2613.5,2613.1,3.82684]
[1730250154782,0.587675,2613.5,2613.1,3.82684]
[1730250155276,0.587675,2613.5,2613.0,3.82693]
[1730250155499,0.07254296,2613.5,2613.4,3.82643]
[1730250155675,4.59749,2614.1,2613.3,3.82656]
[1730250155870,0.07012629,2614.0,2613.3,3.82648]
[1730250156074,1.47692466,2614.0,2613.4,3.82633]
[1730250156411,1.47692466,2614.0,2613.6,3.82613]
[1730250156584,1.47692466,2614.0,2613.5,3.82619]
[1730250157300,1.47692466,2614.0,2613.5,7.65238]
[1730250157489,1.47692466,2614.0,2613.5,3.82619]
[1730250157810,5.30256466,2614.0,2613.4,3.82641]
[1730250158011,0.99000047,2613.9,2613.4,3.82641]
[1730250158406,0.07025578,2613.8,2613.3,7.6529]
[1730250158609,3.82638,2613.5,2612.7,3.82742]
[1730250158803,3.82643,2613.4,2612.8,3.82721]
[1730250159116,5.00336497,2613.4,2612.8,3.82721]
[1730250159320,3.8266,2613.3,2612.8,3.82721]
[1730250159501,4.93308529,2613.4,2612.8,3.82721]
[1730250159705,4.93308529,2613.4,2612.6,3.8275]
[1730250159706,3.82674,2613.2,2612.7,3.82744]
[1730250159910,3.82688,2613.1,2612.6,3.8275]
[1730250160218,3.82674,2613.2,2612.6,3.8275]
[1730250160401,0.07013627,2613.0,2612.6,3.8275]
[1730250160582,0.07013427,2613.1,2612.8,3.8272]
[1730250160784,1.26530853,2613.3,2612.8,3.8272]
[1730250161014,0.07013427,2613.0,2612.8,3.8272]
[1730250161192,0.50918185,2613.2,2612.6,7.65497]
[1730250161395,0.50918185,2613.2,2612.6,3.8276]
[1730250161589,0.07013427,2613.1,2612.8,3.82721]
[1730250162000,0.07013427,2613.1,2612.7,3.82745]
[1730250162185,0.07013427,2613.1,2612.9,3.82715]
[1730250162507,0.07013427,2613.1,2612.7,3.82736]
[1730250162687,0.06769286,2613.0,2612.6,3.8276]
[1730250163014,0.50918185,2613.2,2612.8,3.82723]
[1730250163231,0.06769286,2612.9,2612.8,3.82723]
[1730250163428,0.50918185,2613.2,2612.8,7.65446]
[1730250163731,0.772,2613.3,2612.8,3.82722]
[1730250163878,0.06766895,2613.2,2612.8,3.82722]
[1730250164082,0.772,2613.3,2612.8,3.82722]
[1730250164319,0.772,2613.3,2612.6,3.82748]
[1730250164320,0.06766895,2613.2,2612.6,3.82748]
[1730250164619,3.89439895,2613.2,2612.6,3.82748]
[1730250164819,4.36103884,2613.2,2612.6,3.82748]
[1730250165027,3.8271,2613.0,2612.3,3.82792]
[1730250165325,3.8271,2613.0,2612.4,3.82781]
[1730250165481,0.06765102,2612.9,2612.4,3.82781]
[1730250166286,0.53903012,2612.9,2612.4,3.82781]
[1730250166525,0.8191,2612.7,2612.0,3.9547747]
[1730250166728,0.8191,2612.7,2612.1,3.82825]
[1730250166939,0.06756133,2612.6,2612.3,4.57894]
[1730250167236,4.2986391,2612.9,2612.3,4.57894]
[1730250167445,0.06756332,2612.5,2612.3,4.57894]
[1730250167721,4.64613,2613.0,2612.4,3.82789]
[1730250168038,4.64613,2613.0,2612.3,5.419657]
[1730250168039,3.82717,2612.9,2612.3,0.751]
[1730250168237,3.82717,2612.9,2612.3,4.57897]
[1730250168717,3.82731,2612.8,2612.3,4.57897]
[1730250168920,3.82717,2612.9,2612.3,4.57897]
[1730250168921,7.65447,2612.9,2612.3,4.57897]
[1730250169222,8.501827,2612.9,2612.3,4.57897]
[1730250169422,4.674527,2612.9,2612.3,4.57897]
[1730250169628,0.847357,2612.9,2612.4,3.82789]
[1730250169832,0.8191,2613.2,2612.3,4.16483288]
[1730250170000,3.83617,2613.6,2612.7,3.82743]
[1730250170001,0.8191,2613.6,2612.7,3.82743]
[1730250170330,3.82644,2613.4,2612.7,3.82736]
[1730250170487,0.06756332,2613.3,2612.9,3.82714]
[1730250170683,4.64532,2613.6,2613.0,3.82701]
[1730250170684,0.8191,2613.6,2613.0,3.82701]
[1730250170921,0.06759322,2613.5,2613.0,3.82701]
[1730250171090,0.06759322,2613.5,2612.9,4.57813]
[1730250171292,0.06759322,2613.5,2612.9,5.37732629]
[1730250171498,3.82645,2613.4,2612.9,5.37732629]
[1730250171824,3.82645,2613.4,2612.9,0.79919629]
[1730250171825,0.06762908,2613.3,2612.9,0.79919629]
[1730250171996,3.89427908,2613.3,2612.7,4.57837]
[1730250172184,3.82673,2613.2,2612.7,4.57837]
[1730250172629,0.0677606,2613.1,2612.7,4.57837]
[1730250174607,0.8868606,2613.1,2612.4,0.80009535]
[1730250174793,3.8275,2612.7,2612.2,0.751]
[1730250175021,3.82771,2612.6,2612.0,0.92649005]
[1730250175194,4.71450474,2612.6,2612.1,3.82832]
[1730250175748,0.88682474,2612.6,2612.1,3.82823]
[1730250175894,0.06772474,2612.6,2612.1,4.81264984]
[1730250176227,0.92191421,2612.6,2612.0,0.92649005]
[1730250176534,3.82754,2612.7,2612.1,3.82832]
[1730250176734,3.895361,2612.6,2612.1,3.82832]
[1730250176932,0.067651,2612.6,2612.0,1.11223018]
[1730250177226,0.067651,2612.6,2612.2,3.82811]
[1730250177428,3.895281,2612.6,2612.1,3.82825]
[1730250177793,0.067651,2612.6,2612.2,3.82816]
[1730250177991,0.067651,2612.6,2612.3,3.828]
[1730250178194,4.6465,2612.8,2612.3,3.828]
[1730250178394,5.493877,2612.8,2612.3,3.828]
[1730250178612,0.06751747,2612.7,2612.3,3.828]
[1730250179001,5.493877,2612.8,2612.3,3.828]
[1730250179224,0.06752744,2612.6,2612.4,3.82788]
[1730250179421,0.0675374,2612.7,2612.4,3.82788]
[1730250179620,3.82727,2612.9,2612.4,3.82788]
[1730250179800,0.0675374,2612.6,2612.4,3.82788]
[1730250180134,0.0675374,2612.5,2612.4,3.82788]
[1730250180334,3.82727,2612.9,2612.4,4.81638695]
[1730250180544,0.0675374,2612.8,2612.4,3.82788]
[1730250180839,0.0675374,2612.8,2612.3,4.62809535]
[1730250181042,0.0675374,2612.8,2612.4,0.98854393]
[1730250181248,0.0675374,2612.8,2612.3,4.62804535]
[1730250181451,3.8949574,2612.8,2612.4,0.98947184]
[1730250181604,1.52962074,2612.7,2612.3,0.80009535]
[1730250181804,3.82764,2612.6,2612.4,0.9894791]
[1730250182139,3.89519933,2612.6,2612.3,0.80009535]
[1730250182319,3.82775,2612.5,2612.4,1.79059732]
[1730250182519,3.82775,2612.5,2612.2,1.08536287]
[1730250182520,3.89533126,2612.5,2612.2,1.08536287]
[1730250182727,3.82789,2612.4,2612.3,0.99056518]
[1730250182912,3.82833,2612.1,2612.0,1.21177965]
[1730250183101,3.82833,2612.1,2612.0,0.1263947]
[1730250183303,8.0670883,2612.1,2612.0,0.1263947]
[1730250183725,0.82492542,2612.1,2612.0,0.1263947]
[1730250184001,0.06752542,2612.1,2612.0,0.0763947]
[1730250184440,4.21790354,2612.1,2612.0,0.0763947]
[1730250184644,5.04262362,2612.1,2612.0,0.0763947]
[1730250185319,1.21429362,2612.1,2612.0,0.0763947]
[1730250185602,0.06732008,2612.1,2612.0,0.0763947]
[1730250186343,0.06725428,2612.1,2612.0,1.06734323]
[1730250186639,3.82819,2612.2,2612.0,0.0763947]
[1730250186798,3.82793,2612.4,2612.0,0.0763947]
[1730250187005,0.06730014,2612.1,2612.0,0.0763947]
[1730250187203,3.82793,2612.4,2612.0,0.0763947]
[1730250187503,0.06730014,2612.3,2612.0,0.0763947]
[1730250187709,0.06730014,2612.3,2612.2,3.82819]
[1730250188021,4.5848,2612.8,2612.3,3.82794]
[1730250188324,4.58479,2612.8,2612.2,4.62828535]
[1730250188542,4.58479,2612.8,2612.3,1.27735746]
[1730250188543,0.06732008,2612.7,2612.3,1.27735746]
[1730250188741,0.7574,2612.6,2612.2,0.80009535]
[1730250188920,0.06732008,2612.5,2612.3,0.99173156]
[1730250189122,0.06732008,2612.5,2612.2,4.62818535]
[1730250189327,3.82754,2612.7,2612.2,3.82809]
[1730250189514,0.11227991,2612.6,2612.3,1.27761168]
[1730250189840,3.8276,2612.6,2612.2,1.27762785]
[1730250190035,0.11227991,2612.5,2612.2,3.82811]
[1730250190237,0.11227991,2612.5,2612.2,4.82010297]
[1730250190439,3.82764,2612.6,2612.2,0.28562351]
[1730250190648,0.11227991,2612.4,2612.1,5.10589682]
[1730250190947,3.8274,2612.8,2612.3,3.82802]
[1730250191121,3.82746,2612.7,2612.2,3.82816]
[1730250191317,3.8274,2612.8,2612.3,3.82804]
[1730250191812,0.7574,2612.9,2612.4,3.82788]
[1730250192146,3.82711,2613.0,2612.5,4.59511]
[1730250192747,3.82726,2612.9,2612.5,0.7675]
[1730250193252,3.82726,2612.9,2612.2,3.82809]
[1730250193253,3.82791,2612.4,2612.0,0.0763947]
[1730250193408,3.82811,2612.3,2612.0,0.0763947]
[1730250194443,3.82778,2612.5,2612.0,3.9048647]
[1730250194611,3.8279,2612.4,2612.0,0.0763947]
[1730250195219,7.65589,2612.4,2612.0,0.0763947]
[1730250195551,4.669229,2612.4,2612.0,0.0763947]
[1730250195707,0.841329,2612.4,2612.0,0.0763947]
[1730250196058,3.82833,2612.1,2612.0,0.0763947]
[1730250196344,4.61283,2612.1,2612.0,0.0763947]
[1730250197234,4.61283,2612.1,2612.0,0.0263947]
[1730250198653,4.72521958,2612.1,2612.0,0.0263947]
[1730250201143,0.11238958,2612.1,2612.0,0.0263947]
[1730250201347,3.82827,2612.2,2612.0,0.0263947]
[1730250201648,0.11221676,2612.1,2612.0,0.0263947]
[1730250202063,4.33459544,2612.1,2612.0,0.0263947]
[1730250202211,5.11909544,2612.1,2612.0,0.0263947]
[1730250205256,8.53292832,2612.1,2612.0,0.0263947]
[1730250205548,8.54292832,2612.1,2612.0,0.0263947]
[1730250206054,8.54292832,2612.1,2610.8,2.83832645]
[1730250206055,3.82968,2611.2,2610.8,2.83832645]
[1730250206220,0.7845,2611.2,2610.8,2.83832645]
[1730250206417,3.83009,2610.9,2610.8,2.83832645]
[1730250206741,0.11191094,2610.9,2610.8,2.83832645]
[1730250206954,3.8298,2611.1,2610.8,2.83832645]
[1730250207129,0.11177461,2611.0,2610.8,2.83832645]
[1730250207520,8.44311,2611.5,2610.8,6.66846645]
[1730250207716,0.11163167,2611.4,2610.9,4.60215]
[1730250208128,0.11163167,2611.4,2610.9,4.60211]
[1730250208345,4.61351,2611.7,2611.0,3.82992]
[1730250208543,4.61351,2611.7,2610.9,4.60207]
[1730250208544,0.10540109,2611.6,2610.9,4.60207]
[1730250208717,3.8293,2611.5,2610.9,4.60207]
[1730250208918,3.8293,2611.5,2610.9,5.68749293]
[1730250209119,0.7845,2611.7,2610.9,5.68749293]
[1730250209120,0.10540109,2611.4,2611.2,3.82957]
[1730250209359,3.82869,2611.9,2611.3,4.60161]
[1730250209555,3.82869,2611.9,2610.8,6.66853645]
[1730250209556,4.19833288,2611.7,2610.8,2.83832645]
[1730250209717,3.83002,2611.0,2610.8,2.83832645]
[1730250209919,3.93554132,2610.9,2610.8,2.83832645]
[1730250211167,0.10545132,2610.9,2610.8,2.83832645]
[1730250211369,7.66001,2611.0,2610.8,2.83832645]
[1730250211655,0.10547146,2610.9,2610.8,2.83832645]
[1730250211851,0.10547146,2610.9,2610.8,3.59762645]
[1730250212019,3.82947,2611.4,2610.8,7.7116991]
[1730250212219,0.10538437,2610.9,2610.8,7.7116991]
[1730250212443,3.82922,2611.5,2610.9,3.83006]
[1730250212652,0.10538437,2610.9,2610.8,7.42786645]
[1730250212860,3.82937,2611.4,2610.9,3.83007]
[1730250213024,3.82967,2611.2,2610.8,3.59762645]
[1730250213575,3.93525132,2611.1,2610.8,3.59762645]
[1730250213930,3.93525132,2611.1,2610.8,2.83832645]
[1730250214257,3.82998,2611.0,2610.8,2.83832645]
[1730250214693,0.10551164,2610.9,2610.8,2.83832645]
[1730250214905,4.73160164,2610.9,2610.8,2.83832645]
[1730250215486,0.10551164,2610.9,2610.8,2.83832645]
[1730250215867,3.93560164,2610.9,2610.8,2.83832645]
[1730250216610,0.10551164,2610.9,2610.8,2.83832645]
[1730250216756,0.10551164,2610.9,2610.8,6.9523991]
[1730250216961,3.82989,2611.1,2610.8,3.1221591]
[1730250217158,0.0973896,2611.0,2610.8,2.83832645]
[1730250217405,3.83009,2610.9,2610.8,2.83832645]
[1730250217762,3.9274796,2610.9,2610.8,2.83832645]
[1730250219195,4.7234796,2610.9,2610.8,2.83832645]
[1730250226201,4.7234796,2610.9,2610.8,0.13150137]
[1730250226202,9.11817822,2610.9,2610.8,0.13150137]
[1730250226415,9.97352818,2610.9,2610.8,0.13150137]
[1730250226721,5.57882956,2610.9,2610.8,0.13150137]
[1730250230018,0.0973896,2610.9,2610.8,0.94670137]
[1730250230414,3.83009,2610.9,2610.8,0.13150137]
[1730250230733,3.92512366,2610.9,2610.8,0.13150137]
[1730250231040,4.70063203,2610.9,2610.8,0.13150137]
[1730250231323,5.47813203,2610.9,2610.8,0.13150137]
[1730250233896,4.61847,2610.3,2610.2,1.37e-06]
[1730250234113,9.01316862,2610.3,2610.2,1.37e-06]
[1730250234302,4.61862,2610.2,2610.1,1.37e-06]
[1730250234727,4.71331971,2610.2,2610.1,1.37e-06]
[1730250235517,3.83215,2609.5,2609.0,0.8152]
[1730250235918,3.9267856,2609.5,2609.0,0.8152]
[1730250236350,3.9267856,2609.5,2608.1,3.84417]
[1730250236351,0.7875,2608.8,2607.8,0.8152]
[1730250236636,3.83296,2609.0,2608.2,3.83404]
[1730250236637,0.09397394,2608.7,2608.2,3.83404]
[1730250236819,0.09397394,2608.7,2608.3,0.8152]
[1730250236996,3.83329,2608.8,2608.3,0.8152]
[1730250237191,0.09397394,2608.7,2608.3,0.8152]
[1730250237454,3.83329,2608.8,2608.3,0.8152]
[1730250237734,0.09397394,2608.6,2608.3,4.649]
[1730250237948,3.83275,2609.1,2608.3,4.649]
[1730250238149,0.09397394,2608.5,2608.4,9.04365862]
[1730250238434,0.39267856,2609.4,2608.6,3.83338]
[1730250238733,3.83246,2609.3,2608.4,9.04353862]
[1730250238941,0.42251386,2609.2,2608.4,12.87719862]
[1730250239098,0.42251386,2609.2,2608.4,9.04353862]
[1730250239298,0.08849376,2609.1,2608.6,3.83345]
[1730250239502,0.08849376,2609.1,2608.7,3.83329]
[1730250239700,0.39267856,2609.4,2608.8,3.83307]
[1730250240004,3.83191,2609.7,2608.8,3.83307]
[1730250240221,0.08540931,2609.6,2608.8,3.83307]
[1730250240393,3.8323,2609.4,2608.7,0.8152]
[1730250240827,3.83189,2609.7,2608.7,0.8152]
[1730250241032,0.08451315,2609.6,2608.9,3.83302]
[1730250241233,0.55390346,2609.6,2608.9,3.83302]
[1730250241437,0.55390346,2609.6,2609.0,3.83287]
[1730250241738,0.55390346,2609.6,2609.1,0.7598]
[1730250242235,3.83219,2609.5,2608.9,0.7598]
[1730250243032,0.08451315,2609.4,2608.9,0.7598]
[1730250243233,3.83195,2609.7,2608.9,0.7598]
[1730250243417,3.91653359,2609.6,2608.9,0.7598]
[1730250243736,0.08453359,2609.6,2609.0,3.83274]
[1730250243936,0.08453359,2609.6,2609.1,3.83265]
[1730250244107,0.787,2610.0,2609.3,3.83232]
[1730250244310,0.08460839,2609.5,2609.4,3.83229]
[1730250244521,3.83138,2610.1,2609.4,0.7598]
[1730250244745,0.0846288,2609.5,2609.4,0.7598]
[1730250244916,3.83138,2610.1,2609.4,0.7598]
[1730250245117,0.383138,2610.0,2609.4,0.7598]
[1730250245349,0.383138,2610.0,2609.6,3.83189]
[1730250245350,0.0846288,2610.0,2609.6,3.83189]
[1730250245558,0.0846288,2610.0,2609.5,3.83206]
[1730250245725,4.61806,2610.3,2609.5,3.83206]
[1730250245933,0.08361991,2609.9,2609.5,3.83206]
[1730250246152,4.61806,2610.3,2609.6,3.83199]
[1730250246328,4.61806,2610.3,2609.5,3.83206]
[1730250246329,0.08361991,2609.8,2609.5,3.83206]
[1730250246859,0.08361991,2609.7,2609.5,3.83206]
[1730250247062,0.797,2609.6,2608.6,0.80009535]
[1730250247220,0.797,2609.6,2608.2,1.98786129]
[1730250247221,3.83307,2608.9,2608.2,3.83402]
[1730250247575,9.01398862,2609.4,2608.3,3.83379]
[1730250247576,0.08380692,2608.8,2608.3,3.83379]
[1730250247722,0.08380692,2608.8,2608.1,0.7698]
[1730250247924,0.08380692,2608.8,2608.7,4.59312]
[1730250248124,0.787,2609.4,2608.7,4.59312]
[1730250248508,0.51467119,2609.3,2608.7,4.59312]
[1730250248620,0.59847811,2609.3,2608.7,4.59312]
[1730250248952,0.59847811,2609.3,2608.7,0.7598]
[1730250248953,4.43091811,2609.3,2608.7,0.7598]
[1730250249158,3.83259,2609.2,2608.7,0.7598]
[1730250249660,0.08364031,2609.1,2608.7,0.7598]
[1730250250149,0.08364031,2609.1,2608.1,0.01]